Cogmind - Beta 9.4 @@@ ROGUE MODE // 2020.03.21 @ 06:32:19 Player: UlyssesB Result: Destroyed by G-47 Trooper with Particle Gun Performance ------------- Evolutions (0) 0 Regions Visited (4) 800 Robots Destroyed (27) 135 Value Destroyed (381) 381 Prototype IDs (22) 440 Alien Tech Used (0) 0 Bonus (329) 329 TOTAL SCORE: 2085 Bonus ------- Follower Combat Kills 32 Aligned with FarCom 300 Friendly Fire -3 Cogmind --------- Core Integrity 0/250 Matter 276/300 Energy 89/100 System Corruption 2% Temperature Cool (9) Movement Core (50) Location -9/Mines Parts ------- > --- POWER (1) -------- (None) > --- PROPULSION (2) --- Armored Wheel Armored Wheel > --- UTILITY (2) ------ (None) > --- WEAPON (2) ------- (None) > --- INVENTORY (4) ---- Large Storage Unit Beamcaster Firepult Peak State ------------ > --- POWER ------------ Light Nuclear Core > --- PROPULSION ------- Armored Wheel Armored Wheel > --- UTILITY ---------- Small Storage Unit Hardened Light Armor Plating > --- WEAPON ----------- Particle Gun Beamcaster > --- INVENTORY -------- Armored Wheel High-capacity Battery Firepult EMP Blaster EMP Blaster [Rating: 19] Favorites ----------- Power Light Nuclear Core Engine Ion Engine Power Core Light Nuclear Core Propulsion Armored Wheel Leg Aluminum Leg Wheel Armored Wheel Utility Small Storage Unit Storage Small Storage Unit Protection Hardened Light Armor Plating Weapon Particle Gun Energy Gun Particle Gun Launcher EMP Blaster Build | -11 -10 -10 -10 -9 ------- Run | Scr Mat Min Exi Min Slots Evolved . | . . . . . Power . | . . . . . Propulsion . | . . . . . Utility . | . . . . . Weapon . | . . . . . Parts Attached 16 | . 5 6 3 2 Power 2 | . . 2 . . Engine . | . . . . . Core 2 | . . 2 . . Reactor . | . . . . . Propulsion 4 | . 2 . 1 1 Treads . | . . . . . Leg . | . . . . . Wheel 4 | . 2 . 1 1 Hover . | . . . . . Flight . | . . . . . Utility 2 | . 1 . 1 . Device . | . . . . . Storage 1 | . . . 1 . Processor . | . . . . . Hackware . | . . . . . Protection 1 | . 1 . . . Artifact . | . . . . . Weapon 8 | . 2 4 1 1 Energy Gun 3 | . . 3 . . Energy Cannon . | . . . . . Ballistic Gun . | . . . . . Ballistic Cannon . | . . . . . Launcher 5 | . 2 1 1 1 Special Weapon . | . . . . . Impact Weapon . | . . . . . Slashing Weapon . | . . . . . Piercing Weapon . | . . . . . Special Melee Weapon . | . . . . . Unidentified Prototypes . | . . . . . Parts Lost 5 | . . 1 . 4 Power 1 | . . . . 1 Propulsion . | . . . . . Utility 1 | . . . . 1 Weapon 3 | . . 1 . 2 Highest Loss Streak 4 | . . 1 . 4 Average Slot Usage (%) 97 | . 91 100 100 62 Engine 2 | . 14 1 . . Core 10 | . . 12 14 5 Leg 1 | . 13 . . . Wheel 25 | . 13 28 28 28 Storage 13 | . 14 14 14 8 Protection 12 | . 7 14 14 5 Energy Gun 18 | . 18 17 23 5 Launcher 8 | . 9 10 4 8 Naked Turns . | . . . . . Heaviest Build 33 | 13 22 22 33 33 Greatest Support 24 | 20 24 24 24 24 Greatest Overweight (x) 2 | . 1 1 1 2 Average Overweight (x) . | . . . . . Largest Inventory Capacity 10 | . 6 6 10 10 Average Capacity 6 | . 6 6 6 7 Most Carried 9 | . 6 6 9 9 Average Carried 5 | . 5 5 6 6 Final Capacity 10 | 6 6 6 10 4 Final Carried 9 | 6 6 6 9 4 Class Distribution -------------------- 100% | Mutant Dominant Class ---------------- Mutant | -10/Materials Mutant | -10/Mines Mutant | -10/Exiles Mutant | -9/Mines Resources | -11 -10 -10 -10 -9 ----------- Run | Scr Mat Min Exi Min Matter Collected 420 | 181 19 186 . 34 Remotely . | . . . . . Salvage Created 639 | . 49 383 . 207 Parts 34 | . 4 30 . . Haulers Intercepted . | . . . . . Recyclers Shooed . | . . . . . Parts Field Recycled . | . . . . . Retrieved Matter . | . . . . . Parts Self-Destructed . | . . . . . Prevented . | . . . . . Kills | -11 -10 -10 -10 -9 ------- Run | Scr Mat Min Exi Min Combat Hostiles Destroyed 25 | . 3 12 . 10 Guns 5 | . 3 2 . . AOE 20 | . . 10 . 10 Classes Destroyed 4 | . 1 2 . 1 Worker 2 | . . 2 . . Swarmer 10 | . 3 7 . . Grunt 5 | . . 5 . . Assembled 10 | . . . . 10 Best Kill Streak 10 | . 2 3 . 10 Combat Bots Only 10 | . 2 3 . 10 Max Kills in Single Turn 4 | . 1 3 . 4 Gunslinging . | . . . . . Exploded 4 | . . 3 . 4 Melee . | . . . . . Uniques/NPCs Destroyed . | . . . . . Combat | -11 -10 -10 -10 -9 -------- Run | Scr Mat Min Exi Min Damage Taken 1147 | . 161 355 . 631 Core 250 | . 44 22 . 184 Absorbed by Shields . | . . . . . Core Remaining (%) 100 | 100 . . . . Volleys Fired 44 | . 13 22 1 8 Largest 2 | . 2 2 1 1 Hottest 140 | . 100 140 33 33 Shots Fired 72 | . 26 37 1 8 Gun 44 | . 26 18 . . Cannon . | . . . . . Launcher 28 | . . 19 1 8 Special . | . . . . . Kinetic . | . . . . . Thermal 44 | . 26 18 . . Explosive . | . . . . . Electromagnetic 28 | . . 19 1 8 Robot Hit Streak 3 | . 3 3 . . Robot Miss Streak 4 | . 4 4 . 3 Penetration Max . | . . . . . Secondary Targets . | . . . . . Shots Hit Robots 23 | . 11 12 . . Core Hits 48 | . 3 18 . 27 Critical Hits . | . . . . . Critical Kills . | . . . . . Critical Parts Destroyed . | . . . . . Melee Attacks . | . . . . . Impact . | . . . . . Slashing . | . . . . . Piercing . | . . . . . Sneak Attacks . | . . . . . Combat Hostiles . | . . . . . Follow-up Attacks . | . . . . . Damage Inflicted 1617 | . 102 687 1 827 Guns 264 | . 102 162 . . Cannons . | . . . . . Explosions 1350 | . . 525 1 824 Melee . | . . . . . Ramming 3 | . . . . 3 Kinetic . | . . . . . Thermal 582 | . 102 364 . 116 Explosive . | . . . . . Electromagnetic 1032 | . . 323 1 708 Impact . | . . . . . Slashing . | . . . . . Piercing . | . . . . . Highest Corruption 2 | . . 1 1 2 Average Corruption 1 | . . 1 1 1 Corruption Purged . | . . . . . Effects 9 | . . 7 1 1 Message Errors 2 | . . 1 1 . Energy Discharges 4 | . . 4 . . Data Loss (minor) 2 | . . 1 . 1 Targeting Errors 1 | . . 1 . . Overload Shots . | . . . . . Overflow Damage 36 | . . 1 . 35 Projectiles . | . . . . . Explosions 36 | . . 1 . 35 Melee . | . . . . . Knockbacks . | . . . . . Impact . | . . . . . Kinetic . | . . . . . Secondary . | . . . . . Self-Inflicted Damage 217 | . . 138 . 79 Shots 15 | . . 10 . 5 Rammed 2 | . . . . 2 Targets Rammed 2 | . . . . 2 Kicked . | . . . . . Crushed . | . . . . . Highest Temperature 394 | . 394 355 6 76 Average Temperature 117 | . 182 101 4 45 Received Heat Transfer 263 | . . 54 . 209 Effects 5 | . 4 1 . . Shutdowns 1 | . 1 . . . Energy Bleed 2 | . 2 . . . Matter Decay 1 | . 1 . . . Short Circuit 1 | . . 1 . . Siege Activations . | . . . . . Robots Corrupted . | . . . . . Combat Hostiles . | . . . . . Parts Fried 3 | . . 3 . . Impact Corruptions . | . . . . . Robots Melted . | . . . . . Combat Hostiles . | . . . . . Parts Melted 1 | . 1 . . . Heat Transferred 1066 | . 296 570 . 200 Parts Sabotaged . | . . . . . Parts Stolen . | . . . . . Parts Stripped . | . . . . . Power Chain Reactions 6 | . . 5 . 1 Missiles Intercepted . | . . . . . Alert | -11 -10 -10 -10 -9 ------- Run | Scr Mat Min Exi Min Peak Influence 431 | . 85 431 . 5 Average Influence 223 | . 67 275 . . Maximum Alert Level 2 | . . 2 . . Low Security (%) 34 | . 100 14 . 100 Level 1 52 | . . 68 . . Level 2 13 | . . 17 . . Level 3 . | . . . . . Level 4 . | . . . . . Level 5 . | . . . . . High Security . | . . . . . Max Security . | . . . . . Squads Dispatched 1 | . 1 . . . Investigation . | . . . . . Extermination . | . . . . . Reinforcement 1 | . 1 . . . Assault . | . . . . . Garrison . | . . . . . Intercept . | . . . . . Construction Impeded . | . . . . . Haulers Reinforced . | . . . . . Stealth | -11 -10 -10 -10 -9 --------- Run | Scr Mat Min Exi Min Distress Signals . | . . . . . Communications Jammed . | . . . . . Distress Signals . | . . . . . Times Spotted 42 | . 4 15 . 23 Peak Tracking Total 20 | . 3 3 9 20 Tactical Retreats 4 | . 1 1 . 2 Traps | -11 -10 -10 -10 -9 ------- Run | Scr Mat Min Exi Min Traps Triggered . | . . . . . Indirectly . | . . . . . Trap Hack Attempts . | . . . . . Triggered . | . . . . . Disarmed . | . . . . . Reprogrammed . | . . . . . Reused . | . . . . . Traps Extracted . | . . . . . Installed . | . . . . . Triggered . | . . . . . Machines | -11 -10 -10 -10 -9 ---------- Run | Scr Mat Min Exi Min Machines Disabled 9 | . . 7 2 . Max in Single Turn 7 | . . 7 2 . Machines Sabotaged . | . . . . . Garrisons Compromised . | . . . . . Overloaded Fab Kills . | . . . . . Fab Network Shutdowns . | . . . . . Hacking | -11 -10 -10 -10 -9 --------- Run | Scr Mat Min Exi Min Machines Accessed 2 | . 1 . 1 . Terminals 1 | . 1 . . . Fabricators . | . . . . . Repair Stations . | . . . . . Recycling Units . | . . . . . Scanalyzers . | . . . . . Garrison Access . | . . . . . Total Hacks 3 | . 2 . 1 . Successful 1 | . . . 1 . Failed 2 | . 2 . . . Catastrophic 1 | . 1 . . . Database Lockouts . | . . . . . Manual 1 | . . . 1 . Terminals 2 | . 2 . . . Fabricators . | . . . . . Repair Stations . | . . . . . Recycling Units . | . . . . . Scanalyzers . | . . . . . Garrison Access . | . . . . . Terminal Hacks 1 | . . . 1 . EX-Prototype ID Bank 1 | . . . 1 . Fabricator Hacks . | . . . . . Repair Station Hacks . | . . . . . Recycling Unit Hacks . | . . . . . Scanalyzer . | . . . . . Garrison Access Hacks . | . . . . . Unauthorized Hacks . | . . . . . Terminals . | . . . . . Fabricators . | . . . . . Repair Stations . | . . . . . Recycling Units . | . . . . . Scanalyzers . | . . . . . Garrison Access . | . . . . . Data Cores Recovered . | . . . . . Used . | . . . . . Hacking Detections 1 | . 1 . . . Full Trace Events 1 | . 1 . . . Feedback Events . | . . . . . Feedback Blocked . | . . . . . Robot Schematics Acquired . | . . . . . Robots Built . | . . . . . Matter . | . . . . . Time . | . . . . . Total Robot Build Rating . | . . . . . Part Schematics Acquired . | . . . . . Parts Built . | . . . . . Matter . | . . . . . Time . | . . . . . Total Part Build Rating . | . . . . . Parts Repaired . | . . . . . Time . | . . . . . Parts Recycled . | . . . . . Recycled Matter . | . . . . . Retrieved Matter . | . . . . . Retrieved Components . | . . . . . Parts Scanalyzed . | . . . . . Part Schematics Acquired . | . . . . . Parts Damaged . | . . . . . Bothacking | -11 -10 -10 -10 -9 ------------ Run | Scr Mat Min Exi Min Used RIF Installer . | . . . . . Robots Hacked . | . . . . . Non-combat . | . . . . . Combat . | . . . . . Robot Hacks Applied . | . . . . . Relay Couplers Released . | . . . . . Robots Rewired . | . . . . . Allies Hacked . | . . . . . Hacks Repelled . | . . . . . Allies | -11 -10 -10 -10 -9 -------- Run | Scr Mat Min Exi Min Total Allies 2 | . . 2 . . Largest Group 2 | . . 2 2 . Highest-Rated Group 46 | . . 46 46 . Highest-Rated Ally 31 | . . 31 31 . Total Orders . | . . . . . Ally Attacks 12 | . . 12 . . Total Damage 173 | . . 173 . . Kills 2 | . . 2 . . Allies Corrupted . | . . . . . Allies Melted . | . . . . . Intel | -11 -10 -10 -10 -9 ------- Run | Scr Mat Min Exi Min Robot Analysis Total . | . . . . . Derelict Logs Recovered 2 | . . 2 . . Drone Launches . | . . . . . Drone Recoveries . | . . . . . Exploration | -11 -10 -10 -10 -9 ------------- Run | Scr Mat Min Exi Min Turns Passed 1244 | . 177 734 286 47 Spaces Moved 1146 | 1 123 691 288 43 Core 36 | . . . . 36 Treads . | . . . . . Legs 39 | 1 38 . . . Wheels 1071 | . 85 691 288 7 Hover . | . . . . . Flight . | . . . . . Fastest Speed 50 | 120 90 90 90 50 Average Speed 93 | 120 99 93 96 57 Slowest Speed 120 | 120 120 100 100 110 Overloaded Moves . | . . . . . Propulsion Burnouts . | . . . . . Robots Hopped . | . . . . . Cave-ins Triggered . | . . . . . Exploration Rate (%) 36 | 2 18 92 61 11 Regions Visited 4 Branch Regions 3 Pre-discovered Areas 1 | . . 1 . . Known Exits Taken . | . . . . . Unknown Exits Taken 4 | 1 1 1 1 . Scrap Searched 2 | . . 2 . . Spaces Dug . | . . . . . Terrain Destroyed 40 | . . 34 . 6 Melee . | . . . . . Projectile . | . . . . . AOE 40 | . . 34 . 6 Actions | -11 -10 -10 -10 -9 --------- Run | Scr Mat Min Exi Min Total 1250 | . 153 741 297 59 Wait 16 | . 1 15 . . Move 1142 | . 122 690 287 43 Hop . | . . . . . Pick Up 11 | . 4 4 3 . Fast Attach 6 | . 5 1 . . Attach 4 | . . 1 1 2 Detach . | . . . . . Swap 6 | . . 4 2 . Drop 19 | . 8 4 3 4 Fire 44 | . 13 22 1 8 Melee . | . . . . . Ram 2 | . . . . 2 Kick . | . . . . . Crush . | . . . . . Escape Stasis . | . . . . . Rewire . | . . . . . Trap . | . . . . . Miscellaneous . | . . . . . Route ------- -11/Scrapyard -10/Materials -10/Mines (discovered 2 exits: [*Mat] / *Exi) -10/Exiles -9/Mines History --------- Turn | Location | Event 1 | -11/Scrapyard | Discovered new exit (range 0) 1 | -11/Scrapyard | Entered Materials 147 | -10/Materials | Discovered new exit (range 10) 178 | -10/Materials | Entered Mines 224 | -10/Mines | Met a Derelict bent on vengeance 311 | -10/Mines | Build established: Mutant 473 | -10/Mines | Discovered new exit (range 8) 744 | -10/Mines | Learned location of Storage (-9) 827 | -10/Mines | Found a hidden stash of uninstalled traps 904 | -10/Mines | Deemed a non-threat by the Exiles lab entrance 904 | -10/Mines | Discovered new exit (range 5) 912 | -10/Mines | Entered Exiles 912 | -10/Exiles | Accompanied by 2 allies 938 | -10/Exiles | Met 8R-AWN 942 | -10/Exiles | Led the pair of lost Derelicts to a safe place 954 | -10/Exiles | Met EX-HEX 983 | -10/Exiles | Met EX-BIN 1009 | -10/Exiles | Aligned with FarCom system 1010 | -10/Exiles | Given EX-Vault access code 1033 | -10/Exiles | Opened EX-Vault 1042 | -10/Exiles | Found Firepult 1061 | -10/Exiles | Warned to stay clear of 0b10 Research branches 1086 | -10/Exiles | Met EX-DEC 1183 | -10/Exiles | Discovered new exit (range 15) 1186 | -10/Exiles | Attacked by the Exiles 1198 | -10/Exiles | Left Exiles lab with Firepult 1198 | -10/Exiles | Entered Mines 1199 | -9/Mines | Assembled infested the area 1217 | -9/Mines | Core integrity fell below 50% 1224 | -9/Mines | Core integrity fell below 20% 1237 | -9/Mines | Destroyed 10 combat bots 1245 | -9/Mines | Destroyed by G-47 Trooper with Particle Gun Last Messages --------------- 01214_ as-51449 destroyed. 01214_ Destroyed Asb. Hover Unit. 01214_ as-97318 destroyed. 01214_ as-94501 destroyed. 01216_ Critical hit. 01216_ Hrd. Light Armor Plating destroyed. 01216_ as-57572 destroyed. 01216_ U-05 Engineer destroyed. 01217_ Acquired 16 matter. 01219_ Particle Gun destroyed. 01223_ as-54649 misfires. 01224_ Slammed into as-20363. 01225_ Dropped Humpback. 01225_ Dropped Lrg. Storage Unit. 01226_ Dropped EMP Blaster. 01226_ Slammed into as-60809. 01226_ as-54649 misfires. 01226_ as-60809 destroyed. 01227_ Acquired 18 matter. 01228_ as-59570 destroyed. Map ----- +----------------------------------------------------+ | ??????????????????????????????????????? | | ??????????????????????????????????????? | | ??????????????????????????????????????? | | ??????????????????????????????????????? | | ??????????????????????????????????????? | | ??????????????????????????????????????? | | ??????????????????????????????????????? | | ??????????????????????????????????????? | | ??????????????????????????????????????? | | ??????????????????????????????????????? | | ??????????????????????????????????????? | | ??????????????????????????????????????? | | ??????????????????????????????????????? | | ??????????????????????????????????????? | | ??????????????###?????????????????????? | | ?????????????? ##????????????????????? | | ?????????????? #????????????????????? | | ?????????????# #????????????????????? | | ?????????????# #????????????????????? | | ?????????????# ????????????????????? | | ????????????? g ?????????????????????? | | ????????????? ?????????????????????? | | ????????????? gg??????????????????????? | | ?????????????# ??????????????????????? | | ?????????????#%#??????????????????????? | | ??#####??????#@######### #??????????? | | ?## ##???### #??????????? | | ?# %##?# #### ##### #?????????? | | ?# % ## #?# ###?????????????????? | | ??# %=% !] |#?# #?????????????????? | | ??## %%[!#####?### #?????????????????? | | ???####% ##???????# #?????????????????? | | ??????#%%#????????# #?????????????????? | | ??????# #????????# #?????????????????? | | ??????#% ########?# #?????????????????? | | ??????# % #?# #?????????????????? | | ??????# ###### #?# #?????????????????? | | ??????# ????# #?# #?????????????????? | | ??????# ????# #?# #?????????????????? | | ??????# ???# #?# #?????????????????? | | ??????# ## #?# #?????????????????? | | ??????# ### #?????????????????? | | ??????# < #?????????????????? | | ??????## #####?????????????????? | | ???????# ### ##?????????????????????? | | ???????# ??####???????????????????????? | | ???????? ?????????????????????????????? | | ???????? ?????????????????????????????? | | ???????? ?????????????????????????????? | | ???????? ?????????????????????????????? | +----------------------------------------------------+ Best States ------------- Heat Dissipation 25 Energy Generation 14 Energy Capacity 250 Matter Stores 300 Matter Capacity 300 Sight Range 16 Terrain Scan Density 10 Armor Coverage 150 Evasion (%) 50 Item Schematics ----------------- None Robot Schematics ------------------ None Fabricated ------------ Nothing Alien Tech Used ----------------- None Achievements -------------- None Challenges ------------ None Game ------ Seed MagneticTrapRay Manual? 0 Play Time 00:20:53 Cumulative 138.5 hours Start 2020.03.21 @ 02:18:28 End 2020.03.21 @ 06:32:19 Sessions 3 Manual Loads 0 Difficulty Rogue Special Mode None Game No. 91 Rogue 91 Adventurer 0 Explorer 0 Win Type - Total 5 Types 4/0/1/0/0/0/0 Lore% 68 Gallery% 61 Achievement% 45 Wizard Run 0 Options --------- ASCII 1 Keyboard 0 Movement Mouse Keybinds 0 Fullscreen 2 Font 12/Smallcaps Map View 76x56 Tactical HUD 1 Map Filters NONE Filters NONE Steam 0 RUN: 30c148d6-3f98-479a-944d-cda1157623aa